[Event "Early-Titled-Tuesday-Blitz-September-26-2023"]
[Site "Chess.com"]
[Date "2023.09.26"]
[Round "4"]
[White "DarZay"]
[Black "elegant285"]
[Result "0-1"]
[WhiteElo "2209"]
[BlackElo "2392"]
[TimeControl "180+1"]
[EndTime "8:38:45 PDT"]
[Termination "elegant285 won by checkmate"]

1. e4 {[%clk 0:02:54.8]} 1... c5 {[%clk 0:02:59]} 2. f3 {[%clk 0:02:50.6]} 2...
d5 {[%clk 0:02:58.5]} 3. exd5 {[%clk 0:02:45.2]} 3... Qxd5 {[%clk 0:02:58.3]} 4.
Nc3 {[%clk 0:02:36.2]} 4... Qd8 {[%clk 0:02:57.8]} 5. Bb5+ {[%clk 0:02:31]} 5...
Bd7 {[%clk 0:02:57.3]} 6. Bxd7+ {[%clk 0:02:30.1]} 6... Qxd7 {[%clk 0:02:56.6]}
7. Nge2 {[%clk 0:02:29.6]} 7... Nc6 {[%clk 0:02:57.3]} 8. d3 {[%clk 0:02:29.7]}
8... Nf6 {[%clk 0:02:57.3]} 9. Be3 {[%clk 0:02:28.8]} 9... e5 {[%clk 0:02:56.7]}
10. Ne4 {[%clk 0:02:27.8]} 10... Nd5 {[%clk 0:02:36.4]} 11. Bf2 {[%clk
0:02:00.7]} 11... b6 {[%clk 0:02:29.4]} 12. O-O {[%clk 0:01:59.1]} 12... Be7
{[%clk 0:02:28.4]} 13. N2c3 {[%clk 0:01:56.3]} 13... Nf4 {[%clk 0:02:23.3]} 14.
Ne2 {[%clk 0:01:49]} 14... Ne6 {[%clk 0:02:21.5]} 15. Bg3 {[%clk 0:01:43]} 15...
h5 {[%clk 0:02:03.5]} 16. h3 {[%clk 0:01:40.1]} 16... h4 {[%clk 0:01:59]} 17.
Bf2 {[%clk 0:01:38.1]} 17... g5 {[%clk 0:01:53.3]} 18. Qd2 {[%clk 0:01:27.8]}
18... f5 {[%clk 0:01:45.7]} 19. N4c3 {[%clk 0:01:27.6]} 19... Rg8 {[%clk
0:01:34.3]} 20. a4 {[%clk 0:01:23.3]} 20... g4 {[%clk 0:01:31.1]} 21. fxg4
{[%clk 0:01:21.9]} 21... fxg4 {[%clk 0:01:32]} 22. hxg4 {[%clk 0:01:21.8]} 22...
Rxg4 {[%clk 0:01:18.2]} 23. Qh6 {[%clk 0:01:15.1]} 23... O-O-O {[%clk
0:01:13.8]} 24. Ne4 {[%clk 0:01:12.1]} 24... Rdg8 {[%clk 0:01:09.4]} 25. g3
{[%clk 0:01:08.2]} 25... R4g6 {[%clk 0:01:04.8]} 26. Qe3 {[%clk 0:01:05.4]}
26... Ncd4 {[%clk 0:01:00.7]} 27. Nxd4 {[%clk 0:00:57.9]} 27... Nxd4 {[%clk
0:01:01.6]} 28. a5 {[%clk 0:00:43.6]} 28... Nxc2 {[%clk 0:00:47.9]} 29. Qd2
{[%clk 0:00:43.5]} 29... Nxa1 {[%clk 0:00:47.3]} 30. Rxa1 {[%clk 0:00:43.2]}
30... hxg3 {[%clk 0:00:46.2]} 31. Bxg3 {[%clk 0:00:41.5]} 31... Rxg3+ {[%clk
0:00:45.7]} 32. Nxg3 {[%clk 0:00:40.9]} 32... Rxg3+ {[%clk 0:00:46.6]} 33. Kf2
{[%clk 0:00:40.7]} 33... Qg4 {[%clk 0:00:45.8]} 34. Qh6 {[%clk 0:00:34.2]} 34...
Rg2+ {[%clk 0:00:40.4]} 35. Ke1 {[%clk 0:00:33.9]} 35... Qe2# {[%clk 0:00:40.3]}
0-1

[Event "Early-Titled-Tuesday-Blitz-September-26-2023"]
[Site "Chess.com"]
[Date "2023.09.26"]
[Round "4"]
[White "maracayo"]
[Black "Ariadna_Atreides"]
[Result "1-0"]
[WhiteElo "2377"]
[BlackElo "2193"]
[TimeControl "180+1"]
[EndTime "8:38:45 PDT"]
[Termination "maracayo won by checkmate"]

1. e4 {[%clk 0:03:00.9]} 1... c6 {[%clk 0:03:00]} 2. Nf3 {[%clk 0:03:00.1]} 2...
d5 {[%clk 0:03:00.1]} 3. d3 {[%clk 0:02:59.8]} 3... Qc7 {[%clk 0:02:57]} 4. Be2
{[%clk 0:02:58.8]} 4... e5 {[%clk 0:02:55.6]} 5. O-O {[%clk 0:02:58.5]} 5... Bd6
{[%clk 0:02:54.6]} 6. Re1 {[%clk 0:02:56.4]} 6... dxe4 {[%clk 0:02:41.4]} 7.
dxe4 {[%clk 0:02:54]} 7... Nf6 {[%clk 0:02:41]} 8. Nbd2 {[%clk 0:02:50.2]} 8...
O-O {[%clk 0:02:24.1]} 9. c3 {[%clk 0:02:48.7]} 9... Rd8 {[%clk 0:02:19.1]} 10.
Qc2 {[%clk 0:02:47.6]} 10... b5 {[%clk 0:02:15.6]} 11. h3 {[%clk 0:02:46.6]}
11... a6 {[%clk 0:02:11.2]} 12. a4 {[%clk 0:02:39.3]} 12... Bb7 {[%clk
0:02:00.8]} 13. Nf1 {[%clk 0:02:38.9]} 13... Nbd7 {[%clk 0:01:59.5]} 14. Ng3
{[%clk 0:02:37.6]} 14... Nc5 {[%clk 0:01:51.7]} 15. Bg5 {[%clk 0:02:11.9]} 15...
Be7 {[%clk 0:01:46]} 16. axb5 {[%clk 0:02:02.1]} 16... cxb5 {[%clk 0:01:43.7]}
17. Bf1 {[%clk 0:01:56.4]} 17... Rd7 {[%clk 0:01:02.7]} 18. b4 {[%clk
0:01:51.6]} 18... Ne6 {[%clk 0:01:00.3]} 19. Bxf6 {[%clk 0:01:38.7]} 19... Bxf6
{[%clk 0:01:01.2]} 20. Nf5 {[%clk 0:01:36.7]} 20... Nd4 {[%clk 0:00:50.7]} 21.
N5xd4 {[%clk 0:01:07.4]} 21... exd4 {[%clk 0:00:51.6]} 22. e5 {[%clk 0:01:04.9]}
22... Be7 {[%clk 0:00:40]} 23. Qf5 {[%clk 0:01:00.1]} 23... dxc3 {[%clk
0:00:25.9]} 24. e6 {[%clk 0:00:59.7]} 24... fxe6 {[%clk 0:00:25]} 25. Qxe6+
{[%clk 0:00:59.4]} 25... Kf8 {[%clk 0:00:15.9]} 26. Ne5 {[%clk 0:00:58.9]} 26...
Bd5 {[%clk 0:00:04.5]} 27. Nxd7+ {[%clk 0:00:53.1]} 27... Ke8 {[%clk 0:00:02.7]}
28. Qxe7# {[%clk 0:00:52.4]} 1-0

[Event "Early-Titled-Tuesday-Blitz-September-26-2023"]
[Site "Chess.com"]
[Date "2023.09.26"]
[Round "4"]
[White "Roedor"]
[Black "Elaisaz"]
[Result "1-0"]
[WhiteElo "2356"]
[BlackElo "2140"]
[TimeControl "180+1"]
[EndTime "8:38:46 PDT"]
[Termination "Roedor won on time"]

1. d4 {[%clk 0:02:57.5]} 1... d5 {[%clk 0:02:56.3]} 2. c4 {[%clk 0:02:57.2]}
2... c6 {[%clk 0:02:55.1]} 3. Nf3 {[%clk 0:02:57.1]} 3... Nf6 {[%clk 0:02:54.6]}
4. e3 {[%clk 0:02:57.5]} 4... e6 {[%clk 0:02:53.7]} 5. b3 {[%clk 0:02:56.9]}
5... Bd6 {[%clk 0:02:53.2]} 6. Bd3 {[%clk 0:02:55.3]} 6... Nbd7 {[%clk
0:02:52.3]} 7. Bb2 {[%clk 0:02:55.3]} 7... O-O {[%clk 0:02:52.1]} 8. O-O {[%clk
0:02:54.1]} 8... Re8 {[%clk 0:02:48.3]} 9. Ne5 {[%clk 0:02:54]} 9... c5 {[%clk
0:02:42.7]} 10. Nd2 {[%clk 0:02:49.8]} 10... cxd4 {[%clk 0:02:34]} 11. exd4
{[%clk 0:02:50.7]} 11... Qe7 {[%clk 0:02:03.4]} 12. a4 {[%clk 0:02:43.3]} 12...
Bb4 {[%clk 0:01:50.1]} 13. Ndf3 {[%clk 0:02:39.7]} 13... Nxe5 {[%clk 0:01:36.2]}
14. Nxe5 {[%clk 0:02:37]} 14... Bd7 {[%clk 0:01:22.1]} 15. Qf3 {[%clk
0:02:28.2]} 15... Red8 {[%clk 0:01:06.5]} 16. Rfd1 {[%clk 0:02:25.3]} 16... Bc6
{[%clk 0:00:53.8]} 17. Qh3 {[%clk 0:02:22.4]} 17... dxc4 {[%clk 0:00:41.6]} 18.
Nxc6 {[%clk 0:02:10.3]} 18... bxc6 {[%clk 0:00:41.5]} 19. bxc4 {[%clk
0:02:10.3]} 19... g6 {[%clk 0:00:38.3]} 20. Be2 {[%clk 0:01:58.3]} 20... c5
{[%clk 0:00:22.2]} 21. Bf3 {[%clk 0:01:52.1]} 21... Rab8 {[%clk 0:00:22.1]} 22.
d5 {[%clk 0:01:52.1]} 22... exd5 {[%clk 0:00:18.1]} 23. cxd5 {[%clk 0:01:48.5]}
23... c4 {[%clk 0:00:16.1]} 24. Bd4 {[%clk 0:01:36.9]} 24... Bc5 {[%clk
0:00:14.3]} 25. Bc3 {[%clk 0:01:33.8]} 25... Rb3 {[%clk 0:00:13.4]} 26. Rac1
{[%clk 0:01:32.8]} 26... Ba3 {[%clk 0:00:10.2]} 27. Rc2 {[%clk 0:01:27.4]} 27...
Ne4 {[%clk 0:00:08.7]} 28. Bxe4 {[%clk 0:01:23.3]} 28... Qxe4 {[%clk 0:00:09.1]}
29. Qh6 {[%clk 0:01:18.1]} 29... Rxc3 {[%clk 0:00:08.4]} 30. Rxc3 {[%clk
0:01:17.7]} 30... Rxd5 {[%clk 0:00:06.8]} 31. Rf1 {[%clk 0:01:01.6]} 31... Bb4
{[%clk 0:00:02.6]} 32. Re3 {[%clk 0:01:00.1]} 1-0

[Event "Early-Titled-Tuesday-Blitz-September-26-2023"]
[Site "Chess.com"]
[Date "2023.09.26"]
[Round "4"]
[White "quvnoq_muxlis"]
[Black "jeetjain"]
[Result "0-1"]
[WhiteElo "2798"]
[BlackElo "2595"]
[TimeControl "180+1"]
[EndTime "8:38:49 PDT"]
[Termination "jeetjain won by resignation"]

1. e4 {[%clk 0:03:00.9]} 1... c6 {[%clk 0:02:57.2]} 2. d4 {[%clk 0:03:00.7]}
2... d5 {[%clk 0:02:57.9]} 3. Nc3 {[%clk 0:03:01]} 3... dxe4 {[%clk 0:02:57.7]}
4. Nxe4 {[%clk 0:03:01.9]} 4... Nf6 {[%clk 0:02:58.3]} 5. Nxf6+ {[%clk
0:03:02.3]} 5... gxf6 {[%clk 0:02:59]} 6. h4 {[%clk 0:03:01.4]} 6... Bf5 {[%clk
0:02:56.1]} 7. c3 {[%clk 0:03:01.4]} 7... e6 {[%clk 0:02:56.1]} 8. Ne2 {[%clk
0:02:57.8]} 8... h6 {[%clk 0:02:54.8]} 9. Be3 {[%clk 0:02:55.7]} 9... Nd7 {[%clk
0:02:53.3]} 10. Qd2 {[%clk 0:02:55.8]} 10... Qc7 {[%clk 0:02:39.6]} 11. Ng3
{[%clk 0:02:52.7]} 11... Bg6 {[%clk 0:02:25.4]} 12. h5 {[%clk 0:02:52.7]} 12...
Bh7 {[%clk 0:02:25.2]} 13. Bxh6 {[%clk 0:02:51]} 13... Bd6 {[%clk 0:02:21.2]}
14. Ne2 {[%clk 0:01:56.1]} 14... O-O-O {[%clk 0:02:20.8]} 15. Be3 {[%clk
0:01:10]} 15... Kb8 {[%clk 0:02:20.2]} 16. O-O-O {[%clk 0:00:48.6]} 16... e5
{[%clk 0:02:16.8]} 17. Rh4 {[%clk 0:00:35.8]} 17... Qa5 {[%clk 0:02:14]} 18. b4
{[%clk 0:00:35.6]} 18... Qc7 {[%clk 0:02:11]} 19. g3 {[%clk 0:00:33.8]} 19...
Nb6 {[%clk 0:02:02.7]} 20. Ng1 {[%clk 0:00:26.3]} 20... Nd5 {[%clk 0:01:58.6]}
21. Kb2 {[%clk 0:00:22.3]} 21... a5 {[%clk 0:01:57.4]} 22. a3 {[%clk 0:00:12.3]}
22... Qe7 {[%clk 0:01:48.7]} 23. Bc4 {[%clk 0:00:08.8]} 23... Nb6 {[%clk
0:01:45.4]} 24. Bb3 {[%clk 0:00:08.7]} 24... f5 {[%clk 0:01:40.3]} 25. Nf3
{[%clk 0:00:06.1]} 25... f4 {[%clk 0:01:38.2]} 26. gxf4 {[%clk 0:00:05.4]} 26...
e4 {[%clk 0:01:38.3]} 27. Ng5 {[%clk 0:00:05.8]} 27... Bf5 {[%clk 0:01:37.1]}
28. Rhh1 {[%clk 0:00:05.2]} 28... Rdf8 {[%clk 0:01:31.9]} 29. Rhe1 {[%clk
0:00:03.4]} 29... f6 {[%clk 0:01:31.7]} 30. f3 {[%clk 0:00:01.8]} 30... fxg5
{[%clk 0:01:31.4]} 31. fxe4 {[%clk 0:00:02.7]} 31... Bxe4 {[%clk 0:01:31]} 32.
fxg5 {[%clk 0:00:02.5]} 32... Rxh5 {[%clk 0:01:31.4]} 33. Rg1 {[%clk 0:00:01.8]}
33... Rh2 {[%clk 0:01:30.1]} 34. Rdf1 {[%clk 0:00:02]} 34... Rxd2+ {[%clk
0:01:30.1]} 35. Bxd2 {[%clk 0:00:02.9]} 35... Rxf1 {[%clk 0:01:30.1]} 36. Rxf1
{[%clk 0:00:03.8]} 36... Bg6 {[%clk 0:01:29.9]} 37. Rf6 {[%clk 0:00:03.5]} 37...
Qe4 {[%clk 0:01:27.6]} 38. a4 {[%clk 0:00:02.4]} 38... Qb1+ {[%clk 0:01:27.6]}
39. Ka3 {[%clk 0:00:03.3]} 39... axb4+ {[%clk 0:01:27.5]} 40. cxb4 {[%clk
0:00:03.4]} 40... Qa1+ {[%clk 0:01:22]} 41. Ba2 {[%clk 0:00:03.7]} 41... Nc4+
{[%clk 0:01:21.5]} 42. Kb3 {[%clk 0:00:02.8]} 42... Nxd2+ {[%clk 0:01:22.1]} 0-1

[Event "Early-Titled-Tuesday-Blitz-September-26-2023"]
[Site "Chess.com"]
[Date "2023.09.26"]
[Round "4"]
[White "Noki102"]
[Black "Eagle_2019"]
[Result "0-1"]
[WhiteElo "2407"]
[BlackElo "2694"]
[TimeControl "180+1"]
[EndTime "8:38:55 PDT"]
[Termination "Eagle_2019 won by resignation"]

1. d4 {[%clk 0:02:59.9]} 1... e6 {[%clk 0:02:58.5]} 2. c4 {[%clk 0:02:59.9]}
2... d5 {[%clk 0:02:57.7]} 3. Nf3 {[%clk 0:02:59.3]} 3... Nf6 {[%clk 0:02:56.9]}
4. g3 {[%clk 0:02:59.5]} 4... dxc4 {[%clk 0:02:54.3]} 5. Bg2 {[%clk 0:02:58.7]}
5... Bd7 {[%clk 0:02:54.5]} 6. Ne5 {[%clk 0:02:57.3]} 6... Bc6 {[%clk
0:02:54.6]} 7. Nxc6 {[%clk 0:02:57]} 7... Nxc6 {[%clk 0:02:55.5]} 8. e3 {[%clk
0:02:56.4]} 8... Qd7 {[%clk 0:02:55]} 9. O-O {[%clk 0:02:55.3]} 9... Rd8 {[%clk
0:02:54.7]} 10. Qa4 {[%clk 0:02:48.1]} 10... Nb4 {[%clk 0:02:51.9]} 11. Qxa7
{[%clk 0:02:23.1]} 11... Nc2 {[%clk 0:02:30.9]} 12. Qxb7 {[%clk 0:02:22.1]}
12... Nd5 {[%clk 0:02:30.7]} 13. e4 {[%clk 0:02:18.6]} 13... Nb6 {[%clk
0:02:20.2]} 14. a4 {[%clk 0:02:04.9]} 14... Nxa1 {[%clk 0:02:19.4]} 15. a5
{[%clk 0:02:04.9]} 15... Nb3 {[%clk 0:01:50]} 16. axb6 {[%clk 0:01:26.7]} 16...
cxb6 {[%clk 0:01:49.2]} 17. Qxb6 {[%clk 0:01:26.5]} 17... Nxd4 {[%clk
0:01:48.9]} 18. Be3 {[%clk 0:01:05.8]} 18... Be7 {[%clk 0:01:36]} 19. Nc3 {[%clk
0:00:56.4]} 19... O-O {[%clk 0:01:18.8]} 20. Rd1 {[%clk 0:00:51.5]} 20... Bf6
{[%clk 0:01:18.7]} 21. f4 {[%clk 0:00:42.1]} 21... Rb8 {[%clk 0:01:18]} 22. Rxd4
{[%clk 0:00:37.3]} 22... Bxd4 {[%clk 0:01:15.9]} 23. Qxd4 {[%clk 0:00:37.3]}
23... Qxd4 {[%clk 0:01:15.6]} 24. Bxd4 {[%clk 0:00:37.5]} 24... Rfd8 {[%clk
0:01:14.5]} 25. Ne2 {[%clk 0:00:34.9]} 25... Rxd4 {[%clk 0:01:08.6]} 26. Nxd4
{[%clk 0:00:35]} 26... Rxb2 {[%clk 0:01:08.2]} 27. e5 {[%clk 0:00:32.6]} 27...
c3 {[%clk 0:00:59.1]} 28. h4 {[%clk 0:00:19.8]} 28... c2 {[%clk 0:00:58.3]} 29.
Nxc2 {[%clk 0:00:20]} 29... Rxc2 {[%clk 0:00:59.2]} 30. Kh2 {[%clk 0:00:20.4]}
30... h6 {[%clk 0:00:57.6]} 31. Kh3 {[%clk 0:00:20.7]} 31... g5 {[%clk
0:00:57.3]} 32. hxg5 {[%clk 0:00:20.1]} 32... hxg5 {[%clk 0:00:58.2]} 33. Be4
{[%clk 0:00:19.8]} 33... Rc4 {[%clk 0:00:56.6]} 34. Bd3 {[%clk 0:00:20]} 34...
Rc3 {[%clk 0:00:56.3]} 35. Bb1 {[%clk 0:00:19.5]} 35... gxf4 {[%clk 0:00:56.2]}
36. Kh4 {[%clk 0:00:17.5]} 36... f3 {[%clk 0:00:55.2]} 0-1

[Event "Early-Titled-Tuesday-Blitz-September-26-2023"]
[Site "Chess.com"]
[Date "2023.09.26"]
[Round "4"]
[White "twofoxniel"]
[Black "Haykoooo0o"]
[Result "1-0"]
[WhiteElo "2684"]
[BlackElo "2481"]
[TimeControl "180+1"]
[EndTime "8:38:56 PDT"]
[Termination "twofoxniel won by resignation"]

1. e4 {[%clk 0:03:00.9]} 1... c6 {[%clk 0:02:58.3]} 2. d4 {[%clk 0:03:00.7]}
2... d5 {[%clk 0:02:58.2]} 3. Nd2 {[%clk 0:03:01.1]} 3... dxe4 {[%clk 0:02:58]}
4. Nxe4 {[%clk 0:03:02]} 4... Nd7 {[%clk 0:02:58.5]} 5. Ng5 {[%clk 0:03:01.5]}
5... h6 {[%clk 0:02:58.3]} 6. Ne6 {[%clk 0:03:00.8]} 6... Qb6 {[%clk 0:02:58.3]}
7. Nxf8 {[%clk 0:03:00.6]} 7... Nxf8 {[%clk 0:02:59.2]} 8. c3 {[%clk 0:03:01.2]}
8... Bf5 {[%clk 0:02:57.8]} 9. Nf3 {[%clk 0:03:01.1]} 9... Nf6 {[%clk
0:02:57.2]} 10. Bc4 {[%clk 0:03:01.1]} 10... e6 {[%clk 0:02:57.1]} 11. O-O
{[%clk 0:03:01.6]} 11... N8d7 {[%clk 0:02:57.1]} 12. Re1 {[%clk 0:03:00]} 12...
O-O {[%clk 0:02:57.1]} 13. h3 {[%clk 0:02:59.7]} 13... Bh7 {[%clk 0:02:57]} 14.
Ne5 {[%clk 0:02:48.5]} 14... Nxe5 {[%clk 0:02:56.5]} 15. Rxe5 {[%clk 0:02:47.1]}
15... Rfd8 {[%clk 0:02:53.6]} 16. Qf3 {[%clk 0:02:44.9]} 16... Nd5 {[%clk
0:02:47.5]} 17. Re2 {[%clk 0:02:38.1]} 17... c5 {[%clk 0:02:42]} 18. dxc5 {[%clk
0:02:33.4]} 18... Qxc5 {[%clk 0:02:41.8]} 19. Bb3 {[%clk 0:02:33.6]} 19... a6
{[%clk 0:02:36.3]} 20. Bd2 {[%clk 0:02:31.9]} 20... Rd7 {[%clk 0:02:27.1]} 21.
Rae1 {[%clk 0:02:32.3]} 21... Rad8 {[%clk 0:02:24]} 22. Bc1 {[%clk 0:02:30.5]}
22... Bg6 {[%clk 0:02:19.4]} 23. a3 {[%clk 0:02:26.8]} 23... b5 {[%clk
0:02:12.1]} 24. Qg3 {[%clk 0:02:21.9]} 24... Ne7 {[%clk 0:01:57.9]} 25. Re5
{[%clk 0:02:05.6]} 25... Qc7 {[%clk 0:01:44.9]} 26. Bf4 {[%clk 0:02:01]} 26...
Qb7 {[%clk 0:00:58.9]} 27. h4 {[%clk 0:01:55.5]} 27... Nf5 {[%clk 0:00:44.3]}
28. Qg4 {[%clk 0:01:30.1]} 28... h5 {[%clk 0:00:38.9]} 29. Qg5 {[%clk
0:01:30.1]} 29... Kh7 {[%clk 0:00:30.6]} 30. Rxe6 {[%clk 0:01:07.7]} 30... f6
{[%clk 0:00:05.5]} 31. Rxf6 {[%clk 0:01:05.8]} 31... gxf6 {[%clk 0:00:05.8]} 32.
Qxf6 {[%clk 0:01:06.7]} 32... Qc7 {[%clk 0:00:02.9]} 33. Bxc7 {[%clk 0:01:05.4]}
33... Rxc7 {[%clk 0:00:03.6]} 34. Qxd8 {[%clk 0:01:03.4]} 1-0

[Event "Early-Titled-Tuesday-Blitz-September-26-2023"]
[Site "Chess.com"]
[Date "2023.09.26"]
[Round "4"]
[White "blitzking1729"]
[Black "Mystery2007"]
[Result "1-0"]
[WhiteElo "2765"]
[BlackElo "2496"]
[TimeControl "180+1"]
[EndTime "8:39:02 PDT"]
[Termination "blitzking1729 won on time"]

1. Nf3 {[%clk 0:03:00.1]} 1... b6 {[%clk 0:02:59.1]} 2. d4 {[%clk 0:03:01]} 2...
Bb7 {[%clk 0:02:59.7]} 3. Nc3 {[%clk 0:02:54.5]} 3... Nf6 {[%clk 0:03:00]} 4.
Bg5 {[%clk 0:02:52.3]} 4... d5 {[%clk 0:02:48.4]} 5. e3 {[%clk 0:02:46.5]} 5...
Nbd7 {[%clk 0:02:43.7]} 6. Bd3 {[%clk 0:02:45.1]} 6... h6 {[%clk 0:02:30.9]} 7.
Bh4 {[%clk 0:02:44.4]} 7... e6 {[%clk 0:02:18.4]} 8. O-O {[%clk 0:02:43.1]} 8...
Be7 {[%clk 0:02:18.7]} 9. Qe2 {[%clk 0:02:42.6]} 9... Ne4 {[%clk 0:02:06.8]} 10.
Bxe7 {[%clk 0:02:40.4]} 10... Qxe7 {[%clk 0:02:06.7]} 11. Bxe4 {[%clk
0:02:38.9]} 11... dxe4 {[%clk 0:02:06.9]} 12. Nd2 {[%clk 0:02:39.8]} 12... Nf6
{[%clk 0:02:00]} 13. Qb5+ {[%clk 0:02:37.9]} 13... Qd7 {[%clk 0:01:45.4]} 14.
Qe5 {[%clk 0:02:27]} 14... O-O {[%clk 0:01:03.3]} 15. Ndxe4 {[%clk 0:02:08.4]}
15... Nxe4 {[%clk 0:01:01.3]} 16. Nxe4 {[%clk 0:02:09.3]} 16... f6 {[%clk
0:00:58.8]} 17. Qf4 {[%clk 0:02:08]} 17... e5 {[%clk 0:00:35.9]} 18. dxe5 {[%clk
0:01:44.9]} 18... fxe5 {[%clk 0:00:35.3]} 19. Qh4 {[%clk 0:01:33.5]} 19... g5
{[%clk 0:00:19.1]} 20. Nxg5 {[%clk 0:01:29.2]} 20... hxg5 {[%clk 0:00:18.6]} 21.
Qxg5+ {[%clk 0:01:29.4]} 21... Qg7 {[%clk 0:00:19.2]} 22. Qxg7+ {[%clk
0:01:29.4]} 22... Kxg7 {[%clk 0:00:20.1]} 23. Rfd1 {[%clk 0:01:28.1]} 23... Rad8
{[%clk 0:00:20.7]} 24. f3 {[%clk 0:01:27.2]} 24... Kf6 {[%clk 0:00:17.6]} 25.
Kf2 {[%clk 0:01:25.9]} 25... c5 {[%clk 0:00:16.5]} 26. e4 {[%clk 0:01:24.3]}
26... Ba6 {[%clk 0:00:12.9]} 27. Ke3 {[%clk 0:01:21.3]} 27... Rd4 {[%clk
0:00:12.2]} 28. c3 {[%clk 0:01:21]} 28... Rdd8 {[%clk 0:00:07]} 29. h4 {[%clk
0:01:19.8]} 29... Rh8 {[%clk 0:00:06.3]} 30. g3 {[%clk 0:01:18.3]} 30... c4
{[%clk 0:00:06.2]} 31. Rac1 {[%clk 0:01:08.9]} 31... Rd3+ {[%clk 0:00:02.7]} 32.
Rxd3 {[%clk 0:01:09.1]} 32... cxd3 {[%clk 0:00:03.6]} 33. c4 {[%clk 0:01:08.2]}
33... Rd8 {[%clk 0:00:04.2]} 34. Kd2 {[%clk 0:01:08]} 34... Rd4 {[%clk
0:00:03.9]} 35. b3 {[%clk 0:01:08.2]} 35... Bb7 {[%clk 0:00:04.1]} 36. Rc3
{[%clk 0:01:07.7]} 36... a6 {[%clk 0:00:01.1]} 37. Rxd3 {[%clk 0:01:07.8]} 1-0

[Event "Early-Titled-Tuesday-Blitz-September-26-2023"]
[Site "Chess.com"]
[Date "2023.09.26"]
[Round "4"]
[White "KatakuriDono"]
[Black "Zarinur"]
[Result "0-1"]
[WhiteElo "2323"]
[BlackElo "2522"]
[TimeControl "180+1"]
[EndTime "8:39:04 PDT"]
[Termination "Zarinur won by checkmate"]

1. d4 {[%clk 0:03:00.9]} 1... Nf6 {[%clk 0:02:54.4]} 2. c4 {[%clk 0:03:01]} 2...
e6 {[%clk 0:02:53.7]} 3. Nf3 {[%clk 0:03:00.7]} 3... Bb4+ {[%clk 0:02:51.9]} 4.
Nbd2 {[%clk 0:03:00.1]} 4... c5 {[%clk 0:02:50]} 5. e3 {[%clk 0:02:53.4]} 5...
O-O {[%clk 0:02:42.4]} 6. a3 {[%clk 0:02:50.7]} 6... Bxd2+ {[%clk 0:02:41.3]} 7.
Bxd2 {[%clk 0:02:51.2]} 7... b6 {[%clk 0:02:39.5]} 8. Bd3 {[%clk 0:02:46.4]}
8... Bb7 {[%clk 0:02:37.5]} 9. O-O {[%clk 0:02:37.7]} 9... d5 {[%clk 0:02:34.9]}
10. cxd5 {[%clk 0:02:36.4]} 10... exd5 {[%clk 0:02:33]} 11. Rc1 {[%clk
0:02:35.9]} 11... c4 {[%clk 0:02:29.1]} 12. Bb1 {[%clk 0:02:35.5]} 12... a5
{[%clk 0:02:29.4]} 13. Ne5 {[%clk 0:02:28.6]} 13... b5 {[%clk 0:02:27.2]} 14. f4
{[%clk 0:02:23.2]} 14... Qd6 {[%clk 0:02:19.3]} 15. Rf3 {[%clk 0:02:19]} 15...
b4 {[%clk 0:02:15]} 16. g4 {[%clk 0:02:03.3]} 16... bxa3 {[%clk 0:01:57.6]} 17.
bxa3 {[%clk 0:02:04.2]} 17... Qxa3 {[%clk 0:01:48.6]} 18. g5 {[%clk 0:02:01.9]}
18... Ne4 {[%clk 0:01:47.2]} 19. Rh3 {[%clk 0:01:49.2]} 19... Bc8 {[%clk
0:01:21]} 20. Rh4 {[%clk 0:01:28.7]} 20... Bf5 {[%clk 0:01:12.9]} 21. Bxe4
{[%clk 0:01:07.6]} 21... Bxe4 {[%clk 0:01:11.7]} 22. Qh5 {[%clk 0:01:05.7]}
22... Qb2 {[%clk 0:00:50.9]} 23. g6 {[%clk 0:00:59.6]} 23... h6 {[%clk
0:00:49.1]} 24. gxf7+ {[%clk 0:00:59.2]} 24... Kh7 {[%clk 0:00:47.6]} 25. Rd1
{[%clk 0:00:33.9]} 25... c3 {[%clk 0:00:46.4]} 26. Ng4 {[%clk 0:00:25.9]} 26...
Ra6 {[%clk 0:00:13.5]} 27. Bc1 {[%clk 0:00:19.9]} 27... Qg2# {[%clk 0:00:12.7]}
0-1

[Event "Early-Titled-Tuesday-Blitz-September-26-2023"]
[Site "Chess.com"]
[Date "2023.09.26"]
[Round "4"]
[White "TigranHH"]
[Black "kleopl"]
[Result "1-0"]
[WhiteElo "2239"]
[BlackElo "2460"]
[TimeControl "180+1"]
[EndTime "8:39:06 PDT"]
[Termination "TigranHH won by resignation"]

1. d4 {[%clk 0:03:00.9]} 1... Nf6 {[%clk 0:02:59.5]} 2. c4 {[%clk 0:03:00.7]}
2... e6 {[%clk 0:02:59.5]} 3. Nf3 {[%clk 0:03:00.7]} 3... c5 {[%clk 0:02:58.4]}
4. d5 {[%clk 0:03:00.5]} 4... b5 {[%clk 0:02:58.8]} 5. Bg5 {[%clk 0:02:53.4]}
5... bxc4 {[%clk 0:02:57]} 6. Nc3 {[%clk 0:02:50.6]} 6... d6 {[%clk 0:02:49.6]}
7. dxe6 {[%clk 0:02:48.4]} 7... fxe6 {[%clk 0:02:48.1]} 8. e4 {[%clk 0:02:48.6]}
8... Ba6 {[%clk 0:02:33]} 9. Bxc4 {[%clk 0:02:41.6]} 9... Bxc4 {[%clk
0:02:29.5]} 10. Qa4+ {[%clk 0:02:42.2]} 10... Qd7 {[%clk 0:02:28.8]} 11. Qxc4
{[%clk 0:02:42.6]} 11... Nc6 {[%clk 0:02:26.7]} 12. Bxf6 {[%clk 0:02:23.6]}
12... gxf6 {[%clk 0:02:25.9]} 13. O-O {[%clk 0:02:24.1]} 13... Be7 {[%clk
0:02:19]} 14. Rad1 {[%clk 0:02:21]} 14... Rb8 {[%clk 0:02:03.3]} 15. Rd2 {[%clk
0:02:12.7]} 15... Rb4 {[%clk 0:02:01.2]} 16. Qe2 {[%clk 0:02:10.2]} 16... O-O
{[%clk 0:01:56.4]} 17. Rfd1 {[%clk 0:02:10.6]} 17... Rfb8 {[%clk 0:01:34.8]} 18.
e5 {[%clk 0:01:43.8]} 18... fxe5 {[%clk 0:01:30.1]} 19. Nxe5 {[%clk 0:01:43.3]}
19... Nxe5 {[%clk 0:01:18.8]} 20. Qxe5 {[%clk 0:01:43.3]} 20... Rxb2 {[%clk
0:01:18.7]} 21. Qg3+ {[%clk 0:01:23]} 21... Kh8 {[%clk 0:01:17.9]} 22. Rxb2
{[%clk 0:01:17.2]} 22... Rxb2 {[%clk 0:01:16.7]} 23. Ne4 {[%clk 0:01:16]} 23...
d5 {[%clk 0:01:03.9]} 24. Qc3+ {[%clk 0:01:13.4]} 24... Kg8 {[%clk 0:00:57.7]}
25. Qxb2 {[%clk 0:01:12.7]} 25... Qa4 {[%clk 0:00:57.1]} 26. Nc3 {[%clk
0:01:09.2]} 26... Qc4 {[%clk 0:00:55]} 27. Qb3 {[%clk 0:01:03]} 27... Qa6 {[%clk
0:00:54.8]} 28. Qb5 {[%clk 0:01:02.1]} 28... Qd6 {[%clk 0:00:50]} 29. Qe8+
{[%clk 0:01:00.3]} 29... Bf8 {[%clk 0:00:49.4]} 30. Rd3 {[%clk 0:00:57.9]} 30...
Qf4 {[%clk 0:00:29.6]} 31. Rg3+ {[%clk 0:00:49.7]} 31... Kh8 {[%clk 0:00:29.7]}
32. Ne2 {[%clk 0:00:42.8]} 32... Qf6 {[%clk 0:00:25.2]} 33. h3 {[%clk
0:00:37.5]} 33... h6 {[%clk 0:00:18.2]} 34. Rf3 {[%clk 0:00:36.4]} 34... Qa1+
{[%clk 0:00:18.1]} 35. Kh2 {[%clk 0:00:37]} 35... Qe5+ {[%clk 0:00:17.1]} 36.
Ng3 {[%clk 0:00:35.8]} 1-0